[Event "Warsaw Chess Open-B 2022"]
[Site "Warsaw"]
[Date "2022.07.22"]
[Round "5.5"]
[White "Kaczmarska, Joanna"]
[Black "Kuczewski, Filip"]
[Result "1-0"]
[ECO "E18"]
[WhiteElo "1965"]
[BlackElo "1694"]
[Annotator "TA"]
[PlyCount "63"]
[EventDate "2022.07.18"]
[EventType "swiss"]
[EventCountry "POL"]
[SourceTitle "playchess.com"]
[Source "ChessBase"]
[SourceQuality "1"]
[TimeControl "40/5400+30:1800+30"]

{[%evp 19,63,0,68,39,40,19,119,53,131,134,126,64,65,72,245,252,555,558,530,488,595,570,772,771,759,751,724,720,6187,5406,29974,29974,29974,29975,29972,29968,29982,29981,29992,29993,29994,29992,29992,29993,29993,29994]} 1. Nf3 {[%emt 0:00:02]} Nf6 {[%emt 0:06:19]} 2. g3 {[%emt 0:00:10]} b6 {[%emt 0:03:06]} 3. Bg2 {[%emt 0:00:45]} Bb7 {[%emt 0:00:02]} 4. d4 {[%emt 0:04:48]} e6 {[%emt 0:00:26]} 5. O-O {[%emt 0:00:47]} Be7 {[%emt 0:01:38]} 6. c4 {[%emt 0:01:02]} O-O {[%emt 0:00:28]} 7. Nc3 {[%emt 0:04:51]} Ne4 {[%emt 0:00:46]} 8. Qc2 {[%emt 0:00:54]} Nxc3 {[%emt 0:00:19]} 9. bxc3 {[%emt 0:03:01]} f5 {[%emt 0:06:38]} 10. d5 {[%emt 0:05:19]} Bd6 {[%emt 0:15:26]} ({Black should try} 10... Na6 $11) 11. Nd4 {E19: Queen's Indian: Old Main Line with 7...Ne4 8 Qc2 Nxc3 8 Qxc3.} Qf6 {[%emt 0:14:29]} 12. e4 {[%emt 0:20:23] [#]} Be5 $146 {[%emt 0:25:06]} (12... Na6 $11) ({Predecessor:} 12... Na6 13. Nb5 Nc5 14. exf5 exd5 15. cxd5 Ba6 16. a4 Bxb5 17. axb5 Qxf5 18. Qd1 a5 19. bxa6 Rxa6 {1-0 (41) Lalith,B (2493)-Kampman,T (2058) Hilversum 2010}) 13. dxe6 {[%emt 0:12:28]} (13. Ba3 $16) 13... Bxe4 {[%emt 0:14:44]} (13... dxe6 $14 14. Bf4 Nd7) 14. Bxe4 $16 {[%emt 0:00:37]} fxe4 {[%emt 0:00:07]} 15. Ba3 {[%emt 0:11:01]} (15. Qxe4 $16 Nc6 16. Ba3 (16. exd7 Bxd4 17. cxd4 Nxd4 $16) (16. Nxc6 dxc6 17. Bb2 Rae8 $16) 16... Bxd4 17. Bxf8 (17. cxd4 Qf3 $16) 17... Bxc3 {[#]} 18. e7 $1 Bxa1 19. e8=Q Rxe8 20. Qxe8) 15... c5 $14 {[%emt 0:01:16]} 16. Qxe4 {[%emt 0:01:35] White is more active.} Na6 $2 {[%emt 0:00:52] Loses the game.} (16... Nc6 $16) 17. exd7 $18 {[%emt 0:08:39]} cxd4 {[%emt 0:03:08]} (17... Bxd4 18. cxd4 Rad8 19. dxc5 Qf3) 18. Bxf8 {[%emt 0:01:28]} ({Weaker is} 18. f4 Bc7 $18) 18... Rxf8 {[%emt 0:00:02]} 19. cxd4 {[%emt 0:03:54]} Bd6 {[%emt 0:03:22]} 20. Rae1 {[%emt 0:00:20] [#] Black must now prevent Qd5+.} Nc7 {[%emt 0:01:22] Against Qd5+} 21. c5 {[%emt 0:01:55]} bxc5 {[%emt 0:00:26]} 22. dxc5 {[%emt 0:00:03]} Bxc5 {[%emt 0:00:53]} 23. Qc4+ {[%emt 0:00:08]} Ne6 24. Rxe6 {[%emt 0:10:01]} Bxf2+ {[%emt 0:00:40]} 25. Kg2 {[%emt 0:00:10] White mates.} Qf3+ {[%emt 0:00:32]} 26. Kh3 {[%emt 0:00:07]} Qh5+ {[%emt 0:00:50]} 27. Qh4 $1 {[%emt 0:00:05]} Qf5+ {[%emt 0:00:31]} 28. Qg4 {[%emt 0:00:17]} Qc5 {[%emt 0:00:30]} 29. Re8 {[%emt 0:03:24]} h5 {[%emt 0:00:28]} 30. Qe6+ {[%emt 0:00:19]} Kh7 {[%emt 0:00:14]} 31. d8=Q {[%emt 0:00:57]} Qb5 {[%emt 0:00:18]} 32. Rxf2 {[%emt 0:00:36] Weighted Error Value: White=0.14 (very precise) /Black=0.86} 1-0

[Event "Warsaw Chess Open-B 2022"]
[Site "Warsaw"]
[Date "2022.07.22"]
[Round "5.6"]
[White "Tyshniuk, Roman"]
[Black "Sidorczuk, Pawel"]
[Result "1/2-1/2"]
[ECO "E92"]
[WhiteElo "1693"]
[BlackElo "1962"]
[Annotator "TA"]
[PlyCount "118"]
[EventDate "2022.07.18"]
[EventType "swiss"]
[EventCountry "POL"]
[SourceTitle "playchess.com"]
[Source "ChessBase"]
[SourceQuality "1"]
[TimeControl "40/5400+30:1800+30"]

{[%evp 15,118,40,53,31,21,12,59,42,50,52,57,60,67,66,66,30,18,19,9,11,83,35,39,31,44,41,37,37,52,45,51,55,53,29,35,19,25,3,3,3,3,7,45,0,63,64,64,62,83,82,91,32,193,116,154,147,223,177,169,189,208,186,275,237,238,247,244,245,241,236,240,235,259,266,252,251,348,258,841,833,653,643,580,320,810,282,240,218,204,87,87,87,110,63,63,56,63,63,63,63,63,63,63,63,70]} 1. d4 {[%emt 0:00:03]} Nf6 {[%emt 0:00:05]} 2. c4 {[%emt 0:00:03]} g6 {[%emt 0:00:04]} 3. Nc3 {[%emt 0:00:05]} Bg7 {[%emt 0:00:04]} 4. e4 {[%emt 0:00:06]} d6 {[%emt 0:00:05]} 5. Be2 {[%emt 0:00:35]} O-O {[%emt 0:00:05]} 6. Be3 {[%emt 0:00:15]} e5 {[%emt 0:00:38]} 7. Nf3 {[%emt 0:00:23]} Nc6 {[%emt 0:00:07]} 8. d5 {[%emt 0:09:19]} Ne7 $1 {[%emt 0:00:07] [#]} 9. Qc2 $146 {[%emt 0:00:07] E92: King's Indian: Classical: 6 Be2 e5: 7 dxe5, 7 Be3 and Petrosian System without 7...Nbd7.} ({Predecessor:} 9. Nd2 h5 10. f3 Nd7 11. b4 f5 12. c5 f4 13. Bf2 g5 14. Nc4 Rf6 15. cxd6 cxd6 16. Nb5 Nb6 17. Nxa7 Nxc4 18. Bxc4 {1-0 (42) Bluebaum,M (2681)-Niemann,H (2592) Riga 2021}) 9... c6 {[%emt 0:08:08]} 10. Nd2 {[%emt 0:12:38]} Ne8 {[%emt 0:07:57]} (10... b5 $11 {should be considered.}) 11. f3 {[%emt 0:05:56]} f5 {[%emt 0:00:54]} 12. O-O {[%emt 0:00:48]} Nf6 {[%emt 0:03:21]} 13. b4 {[%emt 0:08:12]} Kh8 {[%emt 0:04:54]} 14. Rad1 b6 {[%emt 0:19:49]} 15. dxc6 {[%emt 0:20:57]} Nxc6 {[%emt 0:00:02]} 16. Qb2 {[%emt 0:00:48]} Nd4 {[%emt 0:04:28]} 17. Bd3 {[%emt 0:02:56]} Nh5 {[%emt 0:03:41]} (17... Be6 $11) 18. Nd5 {[%emt 0:14:18]} (18. Nb3 $16) 18... Be6 {[%emt 0:06:39]} 19. Nb3 {[%emt 0:00:07][%cal Rb3d4]} Bxd5 {[%emt 0:00:50]} 20. cxd5 {[%emt 0:00:04][%cal Rb3d4]} Nxb3 {[%emt 0:03:31]} 21. Qxb3 {[%emt 0:00:04]} Nf4 {[%emt 0:00:06]} 22. Bxf4 {[%emt 0:05:32]} exf4 {[%emt 0:00:02]} 23. exf5 {[%emt 0:01:18]} gxf5 {[%emt 0:00:01]} 24. Qc4 {[%emt 0:01:39]} Be5 {[%emt 0:00:50]} 25. Rc1 {[%emt 0:02:54][%cal Bd1c1,Bc1c2,Bc2c7,Bc7f7][%mdl 32]} Qf6 {[%emt 0:04:10]} 26. Rfd1 {[%emt 0:04:23]} Bd4+ {[%emt 0:00:36]} 27. Kh1 {[%emt 0:00:03]} Be3 {[%emt 0:00:02]} 28. Rc2 {[%emt 0:00:04]} Rf7 {[%emt 0:05:20]} 29. Qc3 {[%emt 0:02:23]} Bd4 {[%emt 0:07:22]} (29... Qxc3 $11 30. Rxc3 a5) 30. Qc6 $14 {[%emt 0:00:27]} Rff8 {[%emt 0:01:05]} 31. Qd7 {[%cal Od3f5]} Rae8 {[%emt 0:10:43]} 32. Rc7 {[%emt 0:02:58][%csl Gc7][%cal Rd7h7] [#]} Qh4 {[%emt 0:00:01] ( -> ...Re1+)} 33. Bf1 {[%emt 0:00:52]} (33. Rf1 $16) 33... Bf6 $2 {[%emt 0:00:05]} (33... Rg8 $14) 34. Qxf5 {[%emt 0:00:57]} (34. Rxa7 $18 Rg8 35. Qxf5 (35. Qxd6 Bg7 $18)) 34... Bd8 {[%emt 0:01:05]} 35. Rf7 $40 {[%emt 0:00:04][%mdl 128] Black is in trouble. White is much more active.} Rg8 {[%emt 0:00:03]} (35... Rxf7 $16 {was worth a try.} 36. Qxf7 Rg8) 36. Qxf4 {[%emt 0:00:34]} Qxf4 {[%emt 0:02:42]} 37. Rxf4 {[%emt 0:00:05]} Bg5 {[%emt 0:00:06]} 38. Rf7 {[%emt 0:00:35]} Re5 {[%emt 0:00:02]} (38... Rg7 $142 39. Rf5 Bh6) 39. f4 {[%emt 0:00:37]} Re7 {[%emt 0:00:00]} 40. Rxe7 {[%emt 0:00:06]} Bxe7 $18 {[%emt 0:00:01][%mdl 4096] Endgame KRB-KRB} 41. Re1 {[%emt 0:30:08]} Bf6 {[%emt 0:30:40]} 42. g3 {[%emt 0:00:26]} Bc3 {[%emt 0:00:06]} 43. Re4 {[%emt 0:00:05]} a5 {[%emt 0:00:34]} 44. bxa5 {[%emt 0:00:06]} bxa5 {[%emt 0:00:04]} 45. Bd3 {[%emt 0:00:22]} Bb4 {[%emt 0:01:29]} 46. Re7 {[%emt 0:01:42][%csl Gd3][%cal Re7h7] [#]} Rg7 {[%emt 0:00:01]} (46... Rc8 47. Kg2 Rc1 48. Rxh7+ Kg8) 47. Rxg7 {[%emt 0:00:11]} Kxg7 {[%emt 0:00:01] KB-KB} 48. Kg2 {[%emt 0:00:06]} h6 {[%emt 0:00:07]} 49. Kf3 {[%emt 0:00:07]} Kf6 $2 {[%emt 0:00:06]} (49... Bd2 50. g4 Kf7) 50. Kg4 $2 {[%emt 0:00:38]} (50. g4 Be1 51. a4) 50... Bc3 {[%emt 0:00:32]} 51. Kh5 {[%emt 0:00:10]} Kg7 {[%emt 0:00:01]} 52. g4 {[%emt 0:00:11]} (52. Bb5 $18 {is more deadly.}) 52... Bd2 $16 {[%emt 0:00:06]} 53. f5 {[%emt 0:01:29]} Kf6 {[%emt 0:00:03]} 54. Kh4 {[%emt 0:00:21]} ({Better is} 54. Bb5 $16) 54... Be1+ {[%emt 0:00:44] White is slightly better.} 55. Kh3 $1 {[%emt 0:00:07]} Kg5 {[%emt 0:00:01]} 56. Be2 {[%emt 0:00:05]} h5 {[%emt 0:00:38]} 57. gxh5 {[%emt 0:00:28][%cal Oh5h6]} Kxf5 {[%emt 0:00:01]} 58. Kg2 {[%emt 0:00:23]} Bc3 {[%emt 0:00:06]} 59. Kf3 {[%emt 0:00:07]} Bd2 {[%emt 0:00:01] White really could win this.  Weighted Error Value: White=0.27 (precise) /Black=0.25 (precise)} 1/2-1/2

[Event "Warsaw Chess Open-B 2022"]
[Site "Warsaw"]
[Date "2022.07.22"]
[Round "5.7"]
[White "Radecki, Wojciech"]
[Black "Nocek, Dominik"]
[Result "0-1"]
[ECO "C50"]
[WhiteElo "1907"]
[BlackElo "1682"]
[Annotator "TA"]
[PlyCount "86"]
[EventDate "2022.07.18"]
[EventType "swiss"]
[EventCountry "POL"]
[SourceTitle "playchess.com"]
[Source "ChessBase"]
[SourceQuality "1"]
[TimeControl "40/5400+30:1800+30"]

{[%evp 16,86,-6,0,3,5,1,0,16,16,31,29,20,0,0,-40,36,39,38,37,49,36,70,-37,37,44,63,49,77,66,195,27,20,32,30,0,-9,-14,0,-30,81,60,75,-125,-66,-272,-201,-184,0,-436,-424,-407,-401,-428,-424,-3330,-3374,-3148,-2547,-2486,-2545,-2324,-2289,-5257,-2295,-29993,-29989,-29993,-29994,-29997,-29995,-29998,-29999]} 1. e4 {[%emt 0:00:02]} e5 {[%emt 0:00:06]} 2. Nf3 {[%emt 0:00:04]} Nc6 {[%emt 0:00:07]} 3. Bc4 {[%emt 0:00:05]} Nf6 {[%emt 0:00:08]} 4. d3 {[%emt 0:00:12]} Bc5 {[%emt 0:00:13]} 5. Bg5 {[%emt 0:00:17]} h6 {[%emt 0:01:08]} 6. Bh4 {[%emt 0:00:18]} d6 {[%emt 0:05:14]} 7. Nc3 {[%emt 0:00:26]} Bg4 {[%emt 0:27:16]} 8. h3 {[%emt 0:00:41]} Bxf3 {[%emt 0:00:12]} 9. Qxf3 {[%emt 0:00:52]} Nd4 {[%emt 0:00:03][%csl LRc2,LRf3] C50: Hungarian Defence and Giuoco Pianissimo.} 10. Qd1 {[%emt 0:00:24]} c6 {[%emt 0:00:21]} 11. a3 {[%emt 0:02:56]} b5 {[%emt 0:07:10] The position is equal.} 12. Ba2 {[%emt 0:01:46]} a5 {[%emt 0:08:03]} 13. Ne2 {[%emt 0:00:26] [#]} Ne6 $146 {[%emt 0:04:13]} ({Predecessor:} 13... Nxe2 14. Qxe2 O-O 15. O-O a4 16. Kh1 Qe7 17. f4 exf4 18. Rxf4 g5 19. Rxf6 Qxf6 20. Rf1 Qxb2 21. Qg4 Qxa2 22. Rf6 Qb1+ 23. Kh2 Bg1+ 24. Kg3 Qe1+ {0-1 (24) Schulte,H-Frielingsdorf,T freechess.de 2015}) 14. Bxe6 {[%emt 0:06:00]} fxe6 {[%emt 0:00:02]} 15. d4 {[%emt 0:01:55]} Bxd4 {[%emt 0:07:31]} (15... exd4 $1 $15 16. Nxd4 g5 17. Nxe6 Qe7 18. Nxc5 dxc5) 16. Nxd4 $14 exd4 17. Qxd4 {[%emt 0:00:48] Threatens to win with 0-0-0.} e5 {[%emt 0:02:42]} 18. Qc3 {[%emt 0:01:13]} Rc8 {[%emt 0:08:22][%cal Of6e4]} 19. f3 {[%emt 0:00:20] [#]} (19. Qb3 $14) 19... O-O {[%emt 0:01:06]} (19... Nxe4 $1 $15 20. Bxd8 Nxc3 21. Bxa5 Nd5) 20. O-O-O {[%emt 0:01:17]} b4 {[%emt 0:13:37]} 21. axb4 {[%emt 0:01:32]} axb4 {[%emt 0:00:09]} 22. Qxb4 {[%emt 0:00:40]} Rb8 {[%emt 0:05:36]} (22... d5 $14) 23. Qa3 $2 {[%emt 0:10:24]} ({Only move:} 23. Qxd6 $18 {aiming for Qe6+.} Qa5 24. Qa3) 23... Ra8 $11 {[%emt 0:01:12]} ({Much less strong is} 23... d5 24. Qc5 $16) 24. Qb3+ {[%emt 0:00:16]} ({But not} 24. Rxd6 $2 Rxa3 25. Rxd8 Ra1+ 26. Kd2 Rxd8+ $19) 24... Kh7 {[%emt 0:01:37][%cal Of6e4] White must now prevent ...Nxe4!} 25. Bxf6 {[%emt 0:01:24]} Qxf6 {[%emt 0:00:35]} 26. Qe3 $1 {[%emt 0:00:36]} Rfb8 {[%emt 0:01:47]} 27. b3 {[%emt 0:00:22]} d5 {[%emt 0:01:43]} (27... Qg6 $11 {remains equal.}) 28. exd5 $16 cxd5 {[%emt 0:00:04][%cal Oe5e4]} 29. Kd2 $2 {[%emt 0:04:20] [#]} (29. Rhe1 $16 {keeps the pressure on.}) 29... Qg6 {[%emt 0:02:03]} (29... Rc8 $1 $17 30. Rc1 Kh8) 30. g4 $2 {[%emt 0:02:14]} ({White should play} 30. Rhe1 $1 $15) 30... Ra2 {[%emt 0:00:42]} 31. Qc3 {[%emt 0:03:26]} Rb6 $2 {[%emt 0:01:30]} (31... e4 $19 32. fxe4 dxe4) 32. Rc1 $2 {[%emt 0:02:06][%mdl 8192]} (32. Ra1 $1 $11 {and White stays safe.} Rc6 33. Qxc6 (33. Rxa2 Rxc3 34. Kxc3 Qf6 $17) 33... Qxc6 34. Rxa2) 32... Rc6 $19 {[%emt 0:00:24]} 33. Qd3 {[%emt 0:00:10]} e4 {[%emt 0:00:02][%cal Be5e4,Be4e3][%mdl 32]} 34. Qe3 {[%emt 0:03:49]} Re6 {[%emt 0:02:00]} 35. f4 (35. Qf4 $142 Rf6 36. Qe5 Rxf3 37. Rhf1 Rxb3 38. Qh5) 35... d4 {[%emt 0:00:30]} 36. Qe2 e3+ 37. Ke1 {[%emt 0:38:08]} Rc6 {[%emt 0:00:23][%cal Be6c6,Bc6c3,Bc3c2,Bc2g2][%mdl 32]} 38. f5 {[%emt 0:00:16]} Qd6 {[%emt 0:00:12] ( -> ...Qg3+)} 39. Qh2 {[%emt 0:10:08] Inhibits Qg3+.} Qa3 {[%emt 0:00:37]} (39... Qd5 $142 40. Rg1 d3) 40. Rd1 {[%emt 0:02:43]} Rc3 {[%emt 0:00:13] Black mates.} 41. Qe5 {[%emt 0:30:34]} Rcxc2 {[%emt 0:30:28]} 42. Kf1 {[%emt 0:00:17]} Qb4 {[%emt 0:00:06]} 43. Kg1 {[%emt 0:00:12]} Rg2+ {[%emt 0:00:05] Weighted Error Value: White=0.95/Black=0.41} 0-1

[Event "Warsaw Chess Open-B 2022"]
[Site "Warsaw"]
[Date "2022.07.22"]
[Round "5.8"]
[White "Drozdz, Jakub"]
[Black "Rzeszowski, Dominik"]
[Result "0-1"]
[ECO "C54"]
[WhiteElo "1671"]
[BlackElo "1856"]
[Annotator "NA RC COMBH"]
[PlyCount "88"]
[EventDate "2022.07.18"]
[EventType "swiss"]
[EventCountry "POL"]
[SourceTitle "playchess.com"]
[Source "ChessBase"]
[SourceQuality "1"]
[TimeControl "40/5400+30:1800+30"]

1. e4 {[%emt 0:00:01]} e5 {[%emt 0:00:11]} 2. Nf3 {[%emt 0:00:03]} Nc6 {[%emt 0:00:05]} 3. Bc4 {[%emt 0:00:03]} Bc5 {[%emt 0:00:15]} 4. c3 {[%emt 0:00:04]} Nf6 {[%emt 0:00:04]} 5. d3 {[%emt 0:00:04]} d6 {[%emt 0:00:40]} 6. Nbd2 {[%emt 0:00:05]} O-O {[%emt 0:00:10]} 7. Nf1 {[%emt 0:00:06]} Be6 {[%emt 0:03:35]} 8. Bb5 {[%emt 0:00:17]} Ne7 {[%emt 0:04:43]} 9. Ng3 {[%emt 0:00:39]} c6 {[%emt 0:09:22]} 10. Ba4 {[%emt 0:00:08]} Ng6 {[%emt 0:04:27]} 11. O-O {[%emt 0:00:24]} Bb6 {[%emt 0:06:56]} 12. Bg5 {[%emt 0:04:10]} h6 {[%emt 0:00:59]} 13. Be3 {[%emt 0:00:27]} Qc8 {[%emt 0:17:57]} 14. Qc1 {[%emt 0:06:28]} Bg4 15. Bxh6 {[%emt 0:12:28]} Bxf3 {[%emt 0:20:04]} 16. Bxg7 {[%emt 0:08:28]} Kxg7 {[%emt 0:05:07]} 17. Nf5+ {[%emt 0:00:19]} Qxf5 {[%emt 0:00:01]} 18. exf5 {[%emt 0:00:07]} Nf4 {[%emt 0:00:01]} 19. Bd1 {[%emt 0:08:21]} Bxg2 {[%emt 0:00:14]} 20. d4 {[%emt 0:06:33]} Rh8 {[%emt 0:07:20]} 21. Re1 {[%emt 0:01:42]} Rxh2 {[%emt 0:03:25]} 22. Qxf4 {[%emt 0:03:25]} exf4 {[%emt 0:00:09]} 23. Kxh2 {[%emt 0:00:06]} Be4 {[%emt 0:03:05]} 24. Rg1+ {[%emt 0:00:08]} Kf8 {[%emt 0:00:01]} 25. Bg4 {[%emt 0:00:17]} Ke7 {[%emt 0:01:56]} 26. f3 {[%emt 0:01:12]} Bd5 {[%emt 0:05:12]} 27. Rge1+ {[%emt 0:00:08]} Kd7 {[%emt 0:00:13]} 28. b3 {[%emt 0:02:30]} Nxg4+ {[%emt 0:03:31]} 29. fxg4 {[%emt 0:00:04]} Rh8+ {[%emt 0:00:06]} 30. Kg1 {[%emt 0:00:09]} Rh1+ {[%emt 0:00:57]} 31. Kf2 {[%emt 0:00:05]} Rh2+ {[%emt 0:00:04]} 32. Kf1 {[%emt 0:01:42]} Ba5 {[%emt 0:03:08]} 33. b4 {[%emt 0:06:52]} Bb6 {[%emt 0:00:22]} 34. f6 {[%emt 0:03:44]} Be6 {[%emt 0:02:04]} 35. Kg1 {[%emt 0:01:28]} Rc2 {[%emt 0:00:02]} 36. Re4 {[%emt 0:02:24]} f3 {[%emt 0:01:14]} 37. Rf1 {[%emt 0:01:04]} Rxc3 {[%emt 0:00:01]} 38. Kf2 {[%emt 0:01:49]} Rd3 {[%emt 0:00:26]} 39. g5 Bxd4+ 40. Ke1 {[%emt 0:07:25]} f2+ {[%emt 0:01:39]} 41. Ke2 {[%emt 0:30:01]} Bc4 {[%emt 0:30:22]} 42. Re7+ {[%emt 0:00:52]} Kd8 {[%emt 0:00:23]} 43. g6 {[%emt 0:01:19]} fxg6 {[%emt 0:00:21]} 44. Rc1 {[%emt 0:01:53]} Rc3+ {[%emt 0:00:34]} 0-1

[Event "Warsaw Chess Open-B 2022"]
[Site "Warsaw"]
[Date "2022.07.23"]
[Round "6.1"]
[White "Pawicka, Magdalena"]
[Black "Kowalczyk, Adam"]
[Result "0-1"]
[ECO "C47"]
[WhiteElo "1781"]
[BlackElo "1944"]
[Annotator "TA"]
[PlyCount "68"]
[EventDate "2022.07.18"]
[EventType "swiss"]
[EventCountry "POL"]
[SourceTitle "playchess.com"]
[Source "ChessBase"]
[SourceQuality "1"]
[TimeControl "40/5400+30:1800+30"]

{[%evp 11,68,61,40,7,-1,0,8,13,-2,-9,-1,-20,-16,-57,-57,-93,-100,-110,-67,-66,-46,-65,-60,-68,-73,-75,-84,-75,-46,-106,-101,-90,-95,-102,-112,-193,-200,-478,-475,-478,-454,-465,-448,-464,-461,-457,-453,-447,-454,-437,-422,-1269,-1269,-1269,-1269,-1243,-529,-1243,-1235]} 1. e4 {[%emt 0:00:13]} e5 {[%emt 0:00:04]} 2. Nf3 {[%emt 0:00:32]} Nf6 {[%emt 0:00:04]} 3. Nc3 {[%emt 0:01:14]} Nc6 {[%emt 0:00:05]} 4. d4 {[%emt 0:00:34]} exd4 {[%emt 0:00:07]} 5. Nxd4 {[%emt 0:00:25]} Nxe4 {[%emt 0:00:46]} 6. Nxe4 {[%emt 0:03:59]} Qe7 $1 {[%emt 0:00:24] [#]} 7. Nb5 $1 {[%emt 0:07:51] C47: Scotch Four Knights and Four Knights with 4 g3.} Qxe4+ {[%emt 0:00:06]} 8. Be2 $1 {[%emt 0:01:29]} Bb4+ {[%emt 0:00:04]} (8... Qxg2 $2 9. Bf3 Qg6 10. Nxc7+ Kd8 11. Nxa8 $18) 9. c3 {[%emt 0:32:39] The position is equal.} Ba5 {[%emt 0:00:04]} 10. O-O {[%emt 0:00:35] Black must now prevent Bd3.} O-O {[%emt 0:00:12]} 11. Bd3 {[%emt 0:02:12]} Qh4 {[%emt 0:00:13]} 12. g3 {[%emt 0:02:26]} Qh3 {[%emt 0:01:38] [#]} 13. Bf4 $146 {[%emt 0:03:31] Against Ne5} ({Predecessor:} 13. Re1 d5 14. Bf1 Qd7 15. Bg2 Ne7 16. b4 Bb6 17. Bf4 Ng6 18. Nd4 Nxf4 19. gxf4 {½-½ (45) Kratzmajer,A (1972)-Demjen,M (1747) Zalakaros 2018}) 13... d6 {[%emt 0:01:38]} 14. Re1 {[%emt 0:02:25]} Bd7 {[%emt 0:23:58]} 15. Bf1 {[%emt 0:04:39]} Qg4 {[%emt 0:20:01]} 16. Be2 {[%emt 0:02:49]} Qg6 {[%emt 0:00:11]} 17. Na3 {[%emt 0:08:23]} Rfe8 {[%emt 0:01:51]} 18. Nc4 {[%emt 0:00:59]} Bb6 {[%emt 0:00:05]} 19. a4 {[%emt 0:03:15]} Be6 {[%emt 0:05:44]} 20. Ne3 {[%emt 0:08:10] White is now going downhill.} (20. b4 $15 Qf6 21. Nxb6 (21. a5 Bxf2+ 22. Kxf2 g5 $17) 21... axb6 22. Qd2) 20... Bxe3 $17 {[%emt 0:04:44]} 21. Bxe3 {[%emt 0:00:06]} Ne5 {[%emt 0:02:26]} 22. Bh5 {[%emt 0:01:54]} Qf5 {[%emt 0:02:31][%cal Oe6b3] And now ...Bb3! would win. Black is more active.} 23. f4 {[%emt 0:01:03]} (23. Bd4 $17 {is a better defense.}) 23... Nc4 $19 {[%emt 0:09:30]} 24. Bc1 {[%emt 0:01:44]} (24. Bf3 {was worth a try.}) 24... Qc5+ {[%emt 0:01:01] Black is clearly winning.} 25. Kg2 {[%emt 0:00:57]} Bd5+ {[%emt 0:03:30]} 26. Bf3 {[%emt 0:01:00]} Bxf3+ {[%emt 0:00:42]} 27. Kxf3 {[%emt 0:00:07]} Qc6+ {[%emt 0:00:08]} 28. Kf2 {[%emt 0:00:24]} Rxe1 {[%emt 0:00:07]} 29. Qxe1 {[%emt 0:00:13]} Re8 {[%emt 0:00:05]} 30. Qd1 {[%emt 0:00:16]} Nxb2 {[%emt 0:06:02]} 31. Qd4 {[%emt 0:01:32]} (31. Qf3 $142 Qb6+ 32. Kg2) 31... Qh1 {[%emt 0:00:47] [#] ( -> ...Re1)} 32. Bxb2 {[%emt 0:02:24]} Qxh2+ {[%emt 0:00:07]} 33. Kf1 {[%emt 0:00:22]} Qe2+ {[%emt 0:01:17]} 34. Kg1 {[%emt 0:00:05]} Re3 {[%emt 0:01:42] Weighted Error Value: White=0.46/Black=0.05 (flawless)} 0-1

[Event "Warsaw Chess Open-B 2022"]
[Site "Warsaw"]
[Date "2022.07.23"]
[Round "6.2"]
[White "Posuniak, Weronika"]
[Black "Kaminski, Jan"]
[Result "1/2-1/2"]
[ECO "D43"]
[WhiteElo "1895"]
[BlackElo "1870"]
[Annotator "NA RC COMBH"]
[PlyCount "97"]
[EventDate "2022.07.18"]
[EventType "swiss"]
[EventCountry "POL"]
[SourceTitle "playchess.com"]
[Source "ChessBase"]
[SourceQuality "1"]
[TimeControl "40/5400+30:1800+30"]

1. d4 {[%emt 0:00:03]} Nf6 {[%emt 0:00:07]} 2. c4 {[%emt 0:00:04]} e6 {[%emt 0:00:07]} 3. Nf3 {[%emt 0:01:22]} d5 {[%emt 0:00:32]} 4. Nc3 {[%emt 0:01:54]} c6 {[%emt 0:00:34]} 5. cxd5 {[%emt 0:00:19]} exd5 {[%emt 0:01:05]} 6. Bg5 {[%emt 0:01:00]} Be7 {[%emt 0:08:20]} 7. e3 {[%emt 0:01:21]} O-O {[%emt 0:02:40]} 8. Bd3 {[%emt 0:00:18]} Re8 {[%emt 0:07:11]} 9. Qc2 {[%emt 0:02:02]} h6 {[%emt 0:00:49]} 10. Bf4 {[%emt 0:00:59]} Nbd7 {[%emt 0:01:33]} 11. O-O {[%emt 0:00:55]} Nf8 {[%emt 0:05:21]} 12. Rab1 {[%emt 0:01:37]} Nh5 {[%emt 0:01:50]} 13. Bg3 {[%emt 0:05:34]} Nxg3 {[%emt 0:00:10]} 14. hxg3 {[%emt 0:01:09]} a5 {[%emt 0:03:44]} 15. a3 {[%emt 0:02:08]} Be6 {[%emt 0:02:55]} 16. Na4 {[%emt 0:03:33]} Nd7 {[%emt 0:01:41]} 17. Nc5 {[%emt 0:03:17]} Nxc5 {[%emt 0:02:13]} 18. dxc5 {[%emt 0:00:06]} Qc7 {[%emt 0:04:00]} 19. a4 {[%emt 0:07:35]} Bd7 {[%emt 0:03:38]} 20. Rfc1 {[%emt 0:01:01]} Reb8 {[%emt 0:03:19]} 21. Nd4 {[%emt 0:03:44]} Bf8 {[%emt 0:07:31]} 22. Bf5 {[%emt 0:13:30]} Be8 {[%emt 0:03:20]} 23. b3 {[%emt 0:04:57]} b6 {[%emt 0:02:14]} 24. cxb6 {[%emt 0:01:42]} Rxb6 {[%emt 0:00:26]} 25. Bd3 {[%emt 0:02:42]} Qe5 {[%emt 0:03:42]} 26. Qc3 {[%emt 0:01:40]} Bb4 {[%emt 0:00:41]} 27. Qc2 {[%emt 0:00:24]} Rab8 {[%emt 0:00:42]} 28. Qe2 {[%emt 0:01:30]} Bd7 {[%emt 0:00:56]} 29. Rc2 {[%emt 0:00:42]} Bf8 {[%emt 0:02:02]} 30. Rbc1 {[%emt 0:01:01]} Ba3 {[%emt 0:00:53]} 31. Ra1 {[%emt 0:00:05]} Bb4 {[%emt 0:00:22]} 32. Rac1 {[%emt 0:00:26]} Ba3 {[%emt 0:01:57]} 33. Rd1 {[%emt 0:01:10]} g6 {[%emt 0:01:55]} 34. Qd2 {[%emt 0:02:23]} Bb4 {[%emt 0:02:03]} 35. Qc1 {[%emt 0:00:08]} Rc8 {[%emt 0:02:06]} 36. Be2 {[%emt 0:04:24]} h5 {[%emt 0:01:50]} 37. Bb5 {[%emt 0:03:09]} Qd6 {[%emt 0:02:18]} 38. Be2 {[%emt 0:01:39]} Qe5 {[%emt 0:02:23]} 39. Qa1 {[%emt 0:01:06]} Rd8 {[%emt 0:05:15]} 40. Rdc1 {[%emt 0:00:40]} Qd6 {[%emt 0:02:24]} 41. Rd1 {[%emt 0:30:55]} c5 {[%emt 0:31:40]} 42. Nb5 {[%emt 0:00:28]} Bxb5 {[%emt 0:01:35]} 43. Bxb5 {[%emt 0:00:04]} Qe7 {[%emt 0:00:36]} 44. Re2 {[%emt 0:01:23]} Re6 {[%emt 0:01:37]} 45. Qb2 {[%emt 0:01:31]} d4 46. exd4 Rxe2 47. Qxe2 Qxe2 48. Bxe2 cxd4 49. Bc4 1/2-1/2